Cogmind - Beta 13 @@@ ROGUE MODE // 2024.02.28 @ 17:34:29 Player: Phosphorus Result: Self-destructed Performance ------------- Evolutions (1) 500 Regions Visited (3) 600 Robots Destroyed (33) 165 Value Destroyed (753) 753 Prototype IDs (1) 20 Alien Tech Used (0) 0 Bonus (100) 100 TOTAL SCORE: 2138 Bonus ------- Follower Combat Kills 100 Cogmind --------- Core Integrity 360/400 Matter 250/300 Energy 265/265 System Corruption 4% Temperature Cool (0) Movement Rolling (138) Ox3 Location -9/Materials Parts ------- > --- POWER (1) -------- Improved Ion Engine > --- PROPULSION (3) --- Wheel Compact Wheel Compact Wheel > --- UTILITY (3) ------ Heat Sink Cargo Storage Unit > --- WEAPON (2) ------- Advanced Beam Cannon Advanced Beam Cannon > --- INVENTORY (30) --- Ion Engine Ion Engine Improved Ion Engine Improved Ion Engine Improved Ion Engine Light Treads Light Treads Flight Unit Flight Unit Flight Unit Flight Unit Medium Storage Unit Seismic Detector Utility Shielding Utility Shielding Hacking Suite Hacking Suite Small Laser Small Laser Small Laser Particle Gun Assault Rifle Light Assault Rifle Heavy Assault Rifle Autogun Grenade Launcher Datajack Maul Peak State ------------ > --- POWER ------------ Improved Ion Engine > --- PROPULSION ------- Light Treads Light Treads Light Treads > --- UTILITY ---------- Cargo Storage Unit Utility Shielding > --- WEAPON ----------- Advanced Beam Cannon Advanced Beam Cannon > --- INVENTORY -------- Ion Engine Ion Engine Improved Ion Engine Improved Ion Engine Improved Ion Engine Light Treads Wheel Compact Wheel Compact Wheel Flight Unit Flight Unit Flight Unit Flight Unit Heat Sink Medium Storage Unit Seismic Detector Utility Shielding Hacking Suite Hacking Suite Small Laser Small Laser Small Laser Particle Gun Assault Rifle Light Assault Rifle Heavy Assault Rifle Autogun Grenade Launcher Datajack Maul [Rating: 18] Favorites ----------- Power Improved Ion Engine Engine Improved Ion Engine Propulsion Light Treads Treads Light Treads Wheel Wheel Utility Cargo Storage Unit Device Heat Sink Storage Cargo Storage Unit Protection Utility Shielding Weapon Assault Rifle Energy Gun Particle Gun Energy Cannon Advanced Beam Cannon Ballistic Gun Assault Rifle Launcher Grenade Launcher Impact Weapon Maul Special Melee Weapon Datajack Build | -11 -10 -10 -9 ------- Run | Yrd Mat Min Mat Slots Evolved 2 | . . . 2 Power . | . . . . Propulsion 1 | . . . 1 Utility 1 | . . . 1 Weapon . | . . . . Parts Attached 41 | 6 15 8 12 Power 4 | 1 2 1 . Engine 4 | 1 2 1 . Core . | . . . . Reactor . | . . . . Propulsion 14 | 2 5 2 5 Treads 9 | 2 3 2 2 Leg . | . . . . Wheel 5 | . 2 . 3 Hover . | . . . . Flight . | . . . . Utility 4 | 1 1 . 2 Device 1 | . . . 1 Storage 2 | 1 1 . . Processor . | . . . . Hackware . | . . . . Protection 1 | . . . 1 Artifact . | . . . . Weapon 19 | 2 7 5 5 Energy Gun 4 | . 2 2 . Energy Cannon 2 | . . . 2 Ballistic Gun 7 | 2 1 2 2 Ballistic Cannon . | . . . . Launcher 1 | . 1 . . Special Weapon . | . . . . Impact Weapon 4 | . 2 1 1 Slashing Weapon . | . . . . Piercing Weapon . | . . . . Special Melee Weapon 1 | . 1 . . Unidentified Prototypes 1 | . . . 1 Parts Lost 9 | . 4 2 3 Power 2 | . 1 1 . Propulsion 4 | . 1 . 3 Utility . | . . . . Weapon 3 | . 2 1 . Highest Loss Streak 4 | . 4 2 2 To Critical Strikes . | . . . . Average Slot Usage (%) 82 | . 81 84 86 Engine 13 | . 13 13 11 Treads 27 | . 25 28 31 Wheel 1 | . 1 . . Storage 13 | . 14 14 11 Protection 1 | . . . 10 Energy Gun 6 | . 8 3 . Ballistic Gun 15 | . 12 21 18 Impact Weapon 2 | . 2 2 1 Naked Turns . | . . . . Heaviest Build 156 | 12 153 153 156 Greatest Support 60 | 40 40 40 60 Greatest Overweight (x) 7 | . 7 3 3 Average Overweight (x) 2 | . 3 3 2 Largest Inventory Capacity 30 | 8 30 30 30 Average Capacity 29 | 7 29 30 30 Most Carried 30 | 5 30 29 30 Average Carried 24 | 2 23 26 26 Final Capacity 30 | 8 30 30 30 Final Carried 28 | 5 27 27 28 Class Distribution -------------------- 96% | Hauler-Mutant 3% | Mutant Dominant Class ---------------- Hauler-Mutant | -10/Materials Hauler-Mutant | -10/Mines Hauler-Mutant | -9/Materials Resources | -11 -10 -10 -9 ----------- Run | Yrd Mat Min Mat Matter Collected 834 | 194 225 235 180 Remotely . | . . . . Salvage Created 1015 | . 354 339 322 Parts 79 | . 32 23 24 Haulers Intercepted 2 | . 1 . 1 Recyclers Shooed 1 | . . . 1 Parts Field Recycled . | . . . . Retrieved Matter . | . . . . Parts Self-Destructed . | . . . . Prevented . | . . . . Kills | -11 -10 -10 -9 ------- Run | Yrd Mat Min Mat Combat Hostiles Destroyed 24 | . 8 11 5 Melee 1 | . . 1 . Guns 18 | . 6 9 3 Cannons 2 | . . . 2 AOE 2 | . 2 . . Classes Destroyed 10 | . 7 2 1 Worker 3 | . 2 . 1 Builder 1 | . 1 . . Hauler 2 | . 1 . 1 Operator 3 | . 1 . 2 Watcher 2 | . 1 . 1 Swarmer 6 | . 3 3 . Grunt 13 | . 5 4 4 Brawler 1 | . . . 1 Sentry 2 | . . 2 . Assembled 2 | . . 2 . Best Kill Streak 4 | . 4 4 2 Combat Bots Only 4 | . 3 4 2 Max Kills in Single Turn 4 | . 4 1 1 Gunslinging . | . . . . Exploded 2 | . 2 . . Melee 1 | . . 1 . Uniques/NPCs Destroyed . | . . . . Combat | -11 -10 -10 -9 -------- Run | Yrd Mat Min Mat Hostile Shots Fired 182 | . 81 70 31 Missed 38 | . 15 16 7 Damage Taken 1828 | . 830 656 342 Core 288 | . 140 108 40 Absorbed by Shields . | . . . . Redirected to Shielding 21 | . . . 21 Regen/Repaired (Parts) 137 | . 137 . . Core Remaining (%) 50 | 100 . . . Volleys Fired 92 | . 42 22 28 Largest 2 | . 2 2 2 Hottest 136 | . 85 85 136 Shots Fired 176 | . 78 44 54 Gun 157 | . 77 44 36 Cannon 18 | . . . 18 Launcher 1 | . 1 . . Special . | . . . . Kinetic 121 | . 57 28 36 Thermal 54 | . 20 16 18 Explosive 1 | . 1 . . Electromagnetic . | . . . . Robot Hit Streak 13 | . 13 7 9 Robot Miss Streak 4 | . 4 3 3 Penetration Max . | . . . . Secondary Targets 2 | . 2 . . Max Gunslinging Chain 1 | . 1 . . Shots Hit Robots 122 | . 58 35 29 Core Hits 53 | . 26 15 12 Critical Kills . | . . . . Critical Parts Destroyed 1 | . . 1 . Critical Strikes 1 | . . 1 . Destroy 1 | . . 1 . Melee Attacks 28 | . 3 23 2 Impact 27 | . 2 23 2 Slashing . | . . . . Piercing . | . . . . Sneak Attacks 1 | . 1 . . Combat Hostiles . | . . . . Follow-up Attacks . | . . . . Damage Inflicted 1966 | . 775 664 527 Guns 1331 | . 579 433 319 Cannons 204 | . . . 204 Explosions 134 | . 134 . . Melee 264 | . 38 226 . Ramming 33 | . 24 5 4 Kinetic 1014 | . 428 267 319 Thermal 521 | . 151 166 204 Explosive 134 | . 134 . . Electromagnetic . | . . . . Impact 264 | . 38 226 . Slashing . | . . . . Piercing . | . . . . Highest Corruption 4 | . . . 4 Average Corruption 4 | . . . 4 Corruption Purged . | . . . . Corruption Blocked . | . . . . Effects 8 | . . . 8 Message Errors 3 | . . . 3 Matter Fused 2 | . . . 2 Heat Flow Errors 1 | . . . 1 Data Loss (minor) 1 | . . . 1 Alerts 1 | . . . 1 Overload Shots . | . . . . Overflow Damage 1 | . . 1 . Projectiles . | . . . . Explosions . | . . . . Melee 1 | . . 1 . Knockbacks . | . . . . Impact . | . . . . Kinetic . | . . . . Secondary . | . . . . Self-Inflicted Damage 22 | . 22 . . Shots 1 | . 1 . . Rammed 3 | . 1 1 1 Targets Rammed 4 | . 2 1 1 Kicked . | . . . . Crushed 1 | . 1 . . Highest Temperature 396 | . 177 225 396 Average Temperature 92 | . 54 92 177 Received Heat Transfer 801 | . 438 267 96 Effects 2 | . . . 2 Shutdowns 1 | . . . 1 Energy Bleed 1 | . . . 1 Siege Activations . | . . . . Robots Corrupted . | . . . . Combat Hostiles . | . . . . Parts Fried . | . . . . Impact Corruptions 1 | . . 1 . Robots Melted . | . . . . Combat Hostiles . | . . . . Parts Melted 1 | . . 1 . Heat Transferred 1147 | . 370 407 370 Parts Sabotaged . | . . . . Parts Stolen . | . . . . Parts Stripped . | . . . . Power Chain Reactions . | . . . . Alert | -11 -10 -10 -9 ------- Run | Yrd Mat Min Mat Peak Influence 213 | . 147 189 213 Initial 73 | . . 22 73 Average 52 | . 34 57 133 Maximum Alert Level 1 | . . . 1 Low Security (%) 95 | 100 100 100 62 Level 1 4 | . . . 37 Level 2 . | . . . . Level 3 . | . . . . Level 4 . | . . . . Level 5 . | . . . . High Security . | . . . . Max Security . | . . . . Squads Dispatched 5 | . 1 . 4 Investigation . | . . . . Extermination . | . . . . Reinforcement 5 | . 1 . 4 Assault . | . . . . Garrison . | . . . . Intercept . | . . . . Searches Triggered . | . . . . Construction Impeded . | . . . . Haulers Reinforced . | . . . . Active Scanning Responses . | . . . . Cargo Convoy Interrupts . | . . . . Stealth | -11 -10 -10 -9 --------- Run | Yrd Mat Min Mat Distress Signals 1 | . . . 1 Communications Jammed . | . . . . Distress Signals . | . . . . Times Spotted 52 | . 18 16 18 Peak Tracking Total 8 | . 4 2 8 Tactical Retreats 4 | . . 3 1 Traps | -11 -10 -10 -9 ------- Run | Yrd Mat Min Mat Traps Triggered . | . . . . Indirectly . | . . . . Trap Hack Attempts 32 | . 32 . . Triggered . | . . . . Disarmed 2 | . 2 . . Reprogrammed . | . . . . Reused . | . . . . Traps Extracted . | . . . . Installed . | . . . . Triggered . | . . . . Machines | -11 -10 -10 -9 ---------- Run | Yrd Mat Min Mat Machines Disabled 2 | . 1 . 1 Max in Single Turn 1 | . 1 . 1 Machines Repaired . | . . . . Machines Dismantled . | . . . . Machines Sabotaged . | . . . . Overloaded Fab Kills . | . . . . Hacking | -11 -10 -10 -9 --------- Run | Yrd Mat Min Mat Machines Accessed 8 | . 7 . 1 Terminals 7 | . 6 . 1 Fabricators . | . . . . Repair Stations 1 | . 1 . . Recycling Units . | . . . . Scanalyzers . | . . . . Garrison Access . | . . . . Total Hacks 19 | . 15 . 4 Successful 9 | . 8 . 1 Failed 10 | . 7 . 3 Catastrophic 1 | . 1 . . Database Lockouts . | . . . . Manual 9 | . 5 . 4 Terminals 15 | . 11 . 4 Fabricators . | . . . . Repair Stations 4 | . 4 . . Recycling Units . | . . . . Scanalyzers . | . . . . Garrison Access . | . . . . Terminal Hacks 5 | . 5 . . Part Schematic 1 | . 1 . . Locate Traps 1 | . 1 . . Hauler Manifests 1 | . 1 . . Zone Layout 2 | . 2 . . Fabricator Hacks . | . . . . Repair Station Hacks 2 | . 2 . . Scan Component 1 | . 1 . . Repair 1 | . 1 . . Recycling Unit Hacks . | . . . . Scanalyzer . | . . . . Garrison Access Hacks . | . . . . Unauthorized Hacks 2 | . 1 . 1 Terminals 2 | . 1 . 1 Operators 2 | . 1 . 1 Fabricators . | . . . . Repair Stations . | . . . . Recycling Units . | . . . . Scanalyzers . | . . . . Garrison Access . | . . . . Data Cores Recovered . | . . . . Used . | . . . . Hacking Detections 7 | . 6 . 1 Full Trace Events . | . . . . Feedback Events . | . . . . Feedback Blocked . | . . . . Robot Schematics Acquired . | . . . . Robots Built . | . . . . Authchips . | . . . . Time . | . . . . Total Robot Build Rating . | . . . . Part Schematics Acquired 1 | . 1 . . Parts Built . | . . . . Authchips . | . . . . Time . | . . . . Total Part Build Rating . | . . . . Parts Repaired 1 | . 1 . . Time 26 | . 26 . . Parts Recycled . | . . . . Recycled Matter . | . . . . Retrieved Matter . | . . . . Retrieved Components . | . . . . Parts Scanalyzed . | . . . . Part Schematics Acquired . | . . . . Parts Damaged . | . . . . Bothacking | -11 -10 -10 -9 ------------ Run | Yrd Mat Min Mat Used RIF Installer . | . . . . Robots Hacked . | . . . . Non-combat . | . . . . Combat . | . . . . Robot Hacks Applied . | . . . . Relay Couplers Released . | . . . . Fabnet Peak Effective % . | . . . . Robots Rewired . | . . . . Allies Hacked . | . . . . Hacks Repelled . | . . . . Allies | -11 -10 -10 -9 -------- Run | Yrd Mat Min Mat Total Allies 1 | . . 1 . Largest Group 1 | . . 1 . Highest-Rated Group 31 | . . 31 . Highest-Rated Ally 31 | . . 31 . Total Orders . | . . . . Ally Attacks 10 | . . 10 . Total Damage 122 | . . 122 . Kills 4 | . . 4 . Allies Corrupted . | . . . . Allies Melted . | . . . . Intel | -11 -10 -10 -9 ------- Run | Yrd Mat Min Mat Robot Analysis Total . | . . . . Derelict Logs Recovered . | . . . . Drone Launches . | . . . . Drone Recoveries . | . . . . Exploration | -11 -10 -10 -9 ------------- Run | Yrd Mat Min Mat Turns Passed 4197 | 87 2529 1030 551 Spaces Moved 1032 | 49 630 218 135 Core 4 | 4 . . . Treads 942 | 45 549 218 130 Legs . | . . . . Wheels 86 | . 81 . 5 Hover . | . . . . Flight . | . . . . Fastest Speed 50 | 50 160 400 138 Average Speed 351 | 151 358 400 313 Slowest Speed 400 | 160 400 400 320 Overloaded Moves . | . . . . Propulsion Burnouts . | . . . . Robots Hopped . | . . . . Cave-ins Triggered . | . . . . Exploration Rate (%) 41 | 4 86 50 25 Regions Visited 3 Branch Regions 1 Pre-discovered Areas . | . . . . Known Exits Taken . | . . . . Unknown Exits Taken 3 | 1 1 1 . Scrap Searched 1 | . . 1 . Spaces Dug 3 | . 1 . 2 Terrain Destroyed 11 | . 9 . 2 Melee 3 | . 1 . 2 Projectile . | . . . . AOE 8 | . 8 . . Terrain Rammed . | . . . . Walls Destroyed . | . . . . Machines Disabled . | . . . . Actions | -11 -10 -10 -9 --------- Run | Yrd Mat Min Mat Total 1365 | 59 819 286 201 Wait 75 | . 55 3 17 Move 1029 | 48 629 217 135 Hop . | . . . . Pick Up 47 | 5 32 6 4 Fast Attach 12 | 6 4 . 2 Attach 10 | . 3 2 5 Detach 3 | . 1 . 2 Swap 19 | . 8 6 5 Drop 14 | . 8 6 . Fire 92 | . 42 22 28 Melee 28 | . 3 23 2 Ram . | . . . . Kick . | . . . . Crush 4 | . 2 1 1 Escape Stasis . | . . . . Rewire . | . . . . Trap 32 | . 32 . . Miscellaneous . | . . . . Route ------- -11/Scrapyard -10/Materials (discovered 5 exits: *Mat x3 / [*Min x2]) -10/Mines -9/Materials (discovered 1 exit: [*Min]) History --------- Turn | Location | Event 2 | -11/Scrapyard | Discovered new exit (range 16) 88 | -11/Scrapyard | Entered Materials 390 | -10/Materials | Lost 4 parts (1p1n2w) 449 | -10/Materials | Build established: Hauler-Mutant 493 | -10/Materials | Discovered new exit (range 14) 836 | -10/Materials | Discovered new exit (range 7) 1352 | -10/Materials | Discovered new exit (range 12) 1797 | -10/Materials | Discovered new exit (range 16) 1930 | -10/Materials | Core integrity fell below 50% 2011 | -10/Materials | Repaired Lgt. Treads 2389 | -10/Materials | Discovered new exit (range 15) 2617 | -10/Materials | Entered Mines 2649 | -10/Mines | Core integrity fell below 20% 2800 | -10/Mines | Excavation squad dispatched 2800 | -10/Mines | A large section of the Mines collapsed 3050 | -10/Mines | Excavation squad dispatched 3300 | -10/Mines | Excavation squad dispatched 3325 | -10/Mines | Received a Mining Laser from a helpful Derelict 3550 | -10/Mines | Excavation squad dispatched 3601 | -10/Mines | Discovered new exit (range 9) 3647 | -10/Mines | Entered Materials 3647 | -9/Materials | Evolved 2 slots: Propulsion x1, Utility x1 4115 | -9/Materials | Discovered new exit (range 7) 4198 | -9/Materials | Self-destructed Last Messages --------------- 04138_ Acquired Prototype Energy Cannon. 04138_ Identified Adv. Beam Cannon. 04138_ K-01 Serf collects debris. 04139_ R-06 Scavenger collects Sml. Laser. 04142_ K-01 Serf collects debris. 04143_ Acquired Adv. Beam Cannon. 04145_ K-01 Serf collects debris. 04154_ System corrupted: IFF burst signal emitted. 04154_ K-01 Serf collects debris. 04155_ Lgt. Treads destroyed. 04159_ K-01 Serf collects debris. 04161_ G-34 Mercenary destroyed. 04162_ K-01 Serf collects debris. 04172_ Power failure, Imp. Ion Engine shutdown. 04174_ G-34 Mercenary destroyed. 04175_ K-01 Serf collects debris. 04194_ ALERT: Hostiles spotted, dispatching reinforcements to Terminal M005. 04195_ C-30 ARC bursts open, deploying its payload. 04195_ S-10 Pest unfolds itself. Map ----- +----------------------------------------------------+ | ?????????????????# "????????????????????????? | | ?????????????????# ????????????????????????? | | ?????????????????# ????????????????????????? | | ?????????????????# #????????????????????????? | | ?????????????????# ## ###??? ??????????????????? | | ??????????????####=# "#?? ?????????????????? | | ??????????????# = *# ""#?? ?????????????????? | | ??????????????# #### !!#? ?????????????????? | | ??????????????# #??# < ""#? "?????????????????? | | ##????????##??# #??# ||#? """???????????????? | | "#??######"#??# #??# ""#? """???????????????? | | "#### #???# #??# ??? """???????????????? | | # """ #####+##### #???? """"" #?????????? | | # """ # # ##### """"" #?????????? | | T + """ # + *% """"" ! ###???????? | | # """ # # =*% w ???????? | | # """ # # = % #?????????? | | # # #####%]!w kss #?????????? | | ####### #?#"" ####????????????? | | #????## #?#"T # ??????? | | ##?????# #?#"" ] s + ??????? | | #??????###########?### s # """???????????? | | #????????????????????# #???????????????? | | #?????????############ ##???????????????? | | ?????? w u ]] #????????????????? | | ????? @ ] #????????????????? | | ????? w ### #????????????????? | | ???? #?? #????????????????? | | ##??????? ###########+##?? #????????????????? | | ????????????????????????? ?????#????????????????? | | ????????????????????????? ??????????????????????? | | ????????????????????????? ??????????????????????? | | ????????????????????????? ??????????????????????? | | ????????????????????????? ??????????????????????? | | ????????????????????????? ??????????????????????? | | ????????????????????????? ??????????????????????? | | ?????????????????????????????????????????????????? | | ?????????????????????????????????????????????????? | | ?????????????????????????????????????????????????? | | ?????????????????????????????????????????????????? | | ?????????????????????????????????????????????????? | | ?????????????????????????????????????????????????? | | ?????????????????????????????????????????????????? | | ?????????????????????????????????????????????????? | | ?????????????????????????????????????????????????? | | ?????????????????????????????????????????????????? | | ?????????????????????????????????????????????????? | | ?????????????????????????????????????????????????? | | ?????????????????????????????????????????????????? | | ?????????????????????????????????????????????????? | +----------------------------------------------------+ Best States ------------- Heat Dissipation 38 Energy Generation 12 Energy Capacity 265 Matter Stores 300 Matter Capacity 300 Sight Range 16 Terrain Scan Density 10 Utility Shielding 33 Evasion (%) 40 Recoil Reduction 3 Item Schematics ----------------- Lrg. Storage Unit | -10/Materials | Hacked Robot Schematics ------------------ None Fabricated ------------ Nothing Alien Tech Used ----------------- None Achievements -------------- Packrat Tank Challenges ------------ None Game ------ Seed TrapMicroAxe Manual? 0 Play Time 00:19:59 Cumulative 72.2 hours Start 2024.02.27 @ 19:56:13 End 2024.02.28 @ 17:34:29 Sessions 4 Manual Loads 0 Difficulty Rogue Special Mode None Game No. 52 Rogue 52 Adventurer 0 Explorer 0 Win Type - Total 3 Types 2/0/0/1/0/0/0/0/0 Lore% 62 Gallery% 58 Achievement% 53 Wizard Run 0 Options --------- Layout 0 ASCII 0 Keyboard 1 Movement Numpad Keybinds 0 Fullscreen 1 Font 18/SmallcapsGlow Map View 76x50 Zoom Use 0% Tactical HUD 1 Map Filters NONE Filters NONE Steam 1 RUN: 81b5f359-b437-4937-bce4-78b340e31e85